fUSD/lending_fUSD_20260506
["ID","MTS","AMOUNT","RATE_DAILY","PERIOD"]
[421698117,1778046732000,-4000.0,0.00036301,60]
[421698156,1778046732000,-624.0,0.00037313,2]
[421698188,1778046732000,-1000.0,0.000378,7]
[421698189,1778046732000,-1000.0,0.000378,7]
[421698194,1778046732000,-1000.0,0.000378,7]
[421698198,1778046732000,-151.0,0.00037823,2]
[421698197,1778046732000,-12774.14957409,0.00037823,2]
[421698200,1778046732000,-151.0,0.00037878,2]
[421698196,1778046732000,-1000.0,0.000378,7]
[421698195,1778046732000,-1000.0,0.000378,7]
[421698193,1778046732000,-1000.0,0.000378,7]
[421698199,1778046732000,-13246.79310833,0.00037878,2]
[421698202,1778046732000,-300.0,0.000379,13]
[421698203,1778046732000,-1481.23780761,0.00037931,2]
[421698201,1778046732000,-200.0,0.000379,13]
[421698206,1778046732000,-7761.0463527,0.00037933,2]
[421698216,1778046732000,-408.0,0.00038064,2]
[421698209,1778046732000,-164.56,0.00037995,60]
[421698211,1778046732000,-164.55,0.00037995,60]
[421698210,1778046732000,-164.56,0.00037995,60]
[421698207,1778046732000,-151.0,0.00037933,2]
[421698204,1778046732000,-771.01748645,0.00037931,2]
[421698215,1778046732000,-1569.1063557,0.00038017,2]
[421698213,1778046732000,-3794.735538,0.00038017,2]
[421698214,1778046732000,-20652.8801006,0.00038017,2]
[421698212,1778046732000,-178.21,0.00037995,60]
[421698208,1778046732000,-47459.74175328,0.0003794,2]
[421698217,1778046732000,-507.0,0.00038074,14]
[421698157,1778046732000,-925.0,0.00037313,2]
[421698185,1778046732000,-12318.36988823,0.00037768,2]
[421698184,1778046732000,-151.0,0.00037713,2]
[421698205,1778046732000,-181.08010149,0.00037931,2]
[421698191,1778046732000,-1000.0,0.000378,7]
[421698192,1778046732000,-1000.0,0.000378,7]
[421698158,1778046732000,-1268.0,0.00037313,2]
[421698159,1778046732000,-417.0,0.00037313,2]
[421698166,1778046732000,-174.61919141,0.00037383,2]
[421698161,1778046732000,-578.20924308,0.00037383,2]
[421698164,1778046732000,-743.50770149,0.00037383,2]
[421698162,1778046732000,-9552.16786547,0.00037383,2]
[421698163,1778046732000,-1428.38747117,0.00037383,2]
[421698165,1778046732000,-151.0,0.00037383,2]
[421698169,1778046732000,-9905.5980765,0.00037438,2]
[421698179,1778046732000,-151.0,0.00037603,2]
[421698178,1778046732000,-11046.30350255,0.00037603,2]
[421698177,1778046732000,-702.14931832,0.0003756,2]
[421698176,1778046732000,-3404.76,0.00037549,48]
[421698160,1778046732000,-4000.0,0.00037315,60]
[421698175,1778046732000,-365.995,0.00037549,48]
[421698168,1778046732000,-37749.48,0.000374,7]
[421698190,1778046732000,-1000.0,0.000378,7]
[421698183,1778046732000,-11878.85235123,0.00037713,2]
[421698187,1778046732000,-1000.0,0.000378,7]
[421698186,1778046732000,-151.0,0.00037768,2]
[421698181,1778046732000,-151.0,0.00037658,2]
[421698182,1778046732000,-150.0,0.00037694,2]
[421698171,1778046732000,-10272.10520533,0.00037493,2]
[421698180,1778046732000,-11455.01673214,0.00037658,2]
[421698170,1778046732000,-151.0,0.00037438,2]
[421698174,1778046732000,-151.0,0.00037548,2]
[421698172,1778046732000,-151.0,0.00037493,2]
[421698173,1778046732000,-10652.17309792,0.00037548,2]
[421698245,1778046733000,-300.0,0.00038241,2]
[421698243,1778046733000,-300.0,0.00038241,2]
[421698244,1778046733000,-300.0,0.00038241,2]
[421698246,1778046733000,-491.85958444,0.00038241,2]
[421698247,1778046733000,-363.42720589,0.00038241,2]
[421698254,1778046733000,-300.0,0.00038241,2]
[421698253,1778046733000,-300.0,0.00038241,2]
[421698250,1778046733000,-300.0,0.00038241,2]
[421698252,1778046733000,-603.45144378,0.00038241,2]
[421698255,1778046733000,-300.0,0.00038241,2]
[421698256,1778046733000,-476.87909536,0.00038241,2]
[421698249,1778046733000,-341.92124282,0.00038241,2]
[421698251,1778046733000,-300.0,0.00038241,2]
[421698257,1778046733000,-526.86051061,0.00038241,2]
[421698267,1778046733000,-300.0,0.00038241,2]
[421698258,1778046733000,-300.0,0.00038241,2]
[421698264,1778046733000,-300.0,0.00038241,2]
[421698261,1778046733000,-300.0,0.00038241,2]
[421698241,1778046733000,-596.62576208,0.00038241,2]
[421698262,1778046733000,-309.13065885,0.00038241,2]
[421698248,1778046733000,-300.0,0.00038241,2]
[421698242,1778046733000,-300.0,0.00038241,2]
[421698226,1778046733000,-300.0,0.00038241,2]
[421698239,1778046733000,-300.0,0.00038241,2]
[421698259,1778046733000,-1065.13491717,0.00038241,2]
[421698227,1778046733000,-483.27319916,0.00038241,2]
[421698218,1778046733000,-358.7,0.00038125,30]
[421698219,1778046733000,-167.0,0.00038173,2]
[421698222,1778046733000,-591.9658418,0.00038205,5]
[421698220,1778046733000,-2859.15288275,0.000382,120]
[421698223,1778046733000,-17.98069185,0.00038241,2]
[421698224,1778046733000,-300.0,0.00038241,2]
[421698221,1778046733000,-2028.02823873,0.000382,120]
[421698225,1778046733000,-300.0,0.00038241,2]
[421698228,1778046733000,-309.32134718,0.00038241,2]
[421698231,1778046733000,-300.0,0.00038241,2]
[421698229,1778046733000,-300.0,0.00038241,2]
[421698230,1778046733000,-300.0,0.00038241,2]
[421698233,1778046733000,-300.0,0.00038241,2]
[421698234,1778046733000,-300.0,0.00038241,2]
[421698232,1778046733000,-1092.83356842,0.00038241,2]
[421698235,1778046733000,-300.0,0.00038241,2]
[421698237,1778046733000,-300.0,0.00038241,2]
[421698236,1778046733000,-300.0,0.00038241,2]
[421698240,1778046733000,-300.0,0.00038241,2]
[421698238,1778046733000,-300.0,0.00038241,2]
[421698266,1778046733000,-300.0,0.00038241,2]
[421698263,1778046733000,-724.83131769,0.00038241,2]
[421698260,1778046733000,-891.9241332,0.00038241,2]
[421698293,1778046733000,-300.0,0.00038241,2]
[421698299,1778046733000,-300.0,0.00038241,2]
[421698296,1778046733000,-451.13853711,0.00038241,2]
[421698294,1778046733000,-481.18706949,0.00038241,2]
[421698298,1778046733000,-300.0,0.00038241,2]
[421698300,1778046733000,-300.0,0.00038241,2]
[421698291,1778046733000,-300.0,0.00038241,2]
[421698295,1778046733000,-300.0,0.00038241,2]
[421698302,1778046733000,-300.0,0.00038241,2]
[421698312,1778046733000,-300.0,0.00038241,2]
[421698304,1778046733000,-309.32134718,0.00038241,2]
[421698303,1778046733000,-483.27319916,0.00038241,2]
[421698305,1778046733000,-300.0,0.00038241,2]
[421698307,1778046733000,-300.0,0.00038241,2]
[421698310,1778046733000,-300.0,0.00038241,2]
[421698306,1778046733000,-300.0,0.00038241,2]
[421698308,1778046733000,-300.0,0.00038241,2]
[421698311,1778046733000,-300.0,0.00038241,2]
[421698309,1778046733000,-1092.83356842,0.00038241,2]
[421698265,1778046733000,-301.2859328,0.00038241,2]
[421698313,1778046733000,-300.0,0.00038241,2]
[421698297,1778046733000,-300.0,0.00038241,2]
[421698292,1778046733000,-463.08064867,0.00038241,2]
[421698301,1778046733000,-300.0,0.00038241,2]
[421698289,1778046733000,-310.3725982,0.00038241,2]
[421698269,1778046733000,-300.0,0.00038241,2]
[421698290,1778046733000,-300.0,0.00038241,2]
[421698268,1778046733000,-300.06118393,0.00038241,2]
[421698270,1778046733000,-474.98520692,0.00038241,2]
[421698271,1778046733000,-300.0,0.00038241,2]
[421698276,1778046733000,-343.40295571,0.00038241,2]
[421698272,1778046733000,-852.7601399,0.00038241,2]
[421698274,1778046733000,-1793.38851355,0.00038241,2]
[421698277,1778046733000,-300.0,0.00038241,2]
[421698275,1778046733000,-300.0,0.00038241,2]
[421698273,1778046733000,-300.0,0.00038241,2]
[421698280,1778046733000,-309.07064608,0.00038241,2]
[421698279,1778046733000,-300.0,0.00038241,2]
[421698282,1778046733000,-300.0,0.00038241,2]
[421698283,1778046733000,-862.96230178,0.00038241,2]
[421698281,1778046733000,-1145.24599896,0.00038241,2]
[421698284,1778046733000,-300.0,0.00038241,2]
[421698288,1778046733000,-300.0,0.00038241,2]
[421698286,1778046733000,-300.0,0.00038241,2]
[421698278,1778046733000,-362.57660227,0.00038241,2]
[421698285,1778046733000,-868.20760568,0.00038241,2]
[421698287,1778046733000,-300.0,0.00038241,2]
[421698342,1778046734000,-300.0,0.00038241,2]
[421698356,1778046734000,-300.0,0.00038241,2]
[421698349,1778046734000,-343.40295571,0.00038241,2]
[421698350,1778046734000,-300.0,0.00038241,2]
[421698352,1778046734000,-300.0,0.00038241,2]
[421698347,1778046734000,-300.0,0.00038241,2]
[421698348,1778046734000,-1793.38851355,0.00038241,2]
[421698346,1778046734000,-852.7601399,0.00038241,2]
[421698340,1778046734000,-300.06118393,0.00038241,2]
[421698353,1778046734000,-368.09857022,0.00038241,2]
[421698351,1778046734000,-300.0,0.00038241,2]
[421698355,1778046734000,-309.07064608,0.00038241,2]
[421698363,1778046734000,-300.0,0.00038241,2]
[421698357,1778046734000,-862.96230178,0.00038241,2]
[421698358,1778046734000,-300.0,0.00038241,2]
[421698368,1778046734000,-300.0,0.00038241,2]
[421698364,1778046734000,-300.0,0.00038241,2]
[421698359,1778046734000,-300.0,0.00038241,2]
[421698360,1778046734000,-300.0,0.00038241,2]
[421698361,1778046734000,-300.0,0.00038241,2]
[421698366,1778046734000,-300.0,0.00038241,2]
[421698362,1778046734000,-310.3725982,0.00038241,2]
[421698367,1778046734000,-481.18706949,0.00038241,2]
[421698365,1778046734000,-463.08064867,0.00038241,2]
[421698344,1778046734000,-300.0,0.00038241,2]
[421698354,1778046734000,-1145.24599896,0.00038241,2]
[421698343,1778046734000,-474.98520692,0.00038241,2]
[421698314,1778046734000,-300.0,0.00038241,2]
[421698339,1778046734000,-300.0,0.00038241,2]
[421698369,1778046734000,-451.13853711,0.00038241,2]
[421698315,1778046734000,-300.0,0.00038241,2]
[421698316,1778046734000,-490.61489498,0.00038241,2]
[421698320,1778046734000,-300.0,0.00038241,2]
[421698317,1778046734000,-300.0,0.00038241,2]
[421698318,1778046734000,-300.0,0.00038241,2]
[421698321,1778046734000,-491.85958444,0.00038241,2]
[421698319,1778046734000,-300.0,0.00038241,2]
[421698322,1778046734000,-300.0,0.00038241,2]
[421698323,1778046734000,-300.0,0.00038241,2]
[421698326,1778046734000,-603.45144378,0.00038241,2]
[421698324,1778046734000,-300.0,0.00038241,2]
[421698345,1778046734000,-300.0,0.00038241,2]
[421698327,1778046734000,-300.0,0.00038241,2]
[421698334,1778046734000,-309.13065885,0.00038241,2]
[421698331,1778046734000,-300.0,0.00038241,2]
[421698333,1778046734000,-891.9241332,0.00038241,2]
[421698328,1778046734000,-300.0,0.00038241,2]
[421698329,1778046734000,-300.0,0.00038241,2]
[421698330,1778046734000,-526.86051061,0.00038241,2]
[421698332,1778046734000,-1065.13491717,0.00038241,2]
[421698336,1778046734000,-300.0,0.00038241,2]
[421698338,1778046734000,-300.0,0.00038241,2]
[421698337,1778046734000,-301.2859328,0.00038241,2]
[421698335,1778046734000,-724.83131769,0.00038241,2]
[421698341,1778046734000,-300.0,0.00038241,2]
[421698325,1778046734000,-300.0,0.00038241,2]
[421698372,1778046734000,-300.0,0.00038241,2]
[421698421,1778046734000,-156.48951136,0.00038973,120]
[421698374,1778046734000,-300.0,0.00038241,2]
[421698405,1778046734000,-246.0,0.00038356,2]
[421698404,1778046734000,-150.0,0.00038356,2]
[421698403,1778046734000,-309.0,0.00038356,2]
[421698402,1778046734000,-200.0,0.00038356,2]
[421698408,1778046734000,-1536.04360649,0.00038479,2]
[421698409,1778046734000,-799.54513345,0.00038479,2]
[421698410,1778046734000,-187.78006525,0.00038479,2]
[421698407,1778046734000,-364.0,0.00038356,2]
[421698411,1778046734000,-150.0,0.000385,120]
[421698412,1778046734000,-37749.48,0.000385,7]
[421698414,1778046734000,-200.0,0.00038699,2]
[421698416,1778046734000,-200.0,0.00038699,2]
[421698401,1778046734000,-183.0,0.00038356,2]
[421698415,1778046734000,-200.0,0.00038699,2]
[421698428,1778046734000,-194.72792766,0.00039027,2]
[421698420,1778046734000,-2247.1401,0.00038899,2]
[421698423,1778046734000,-161.49,0.00039,2]
[421698419,1778046734000,-176.0,0.0003888,2]
[421698417,1778046734000,-151.0,0.00038752,2]
[421698427,1778046734000,-932.60764908,0.00039027,2]
[421698424,1778046734000,-161.49,0.00039,2]
[421698422,1778046734000,-507.0,0.00038986,15]
[421698425,1778046734000,-500.0,0.00039024,120]
[421698426,1778046734000,-1592.87721993,0.00039027,2]
[421698429,1778046734000,-200.0,0.00039086,2]
[421698371,1778046734000,-300.0,0.00038241,2]
[421698418,1778046734000,-1208.0,0.00038834,2]
[421698399,1778046734000,-228.0,0.00038356,2]
[421698413,1778046734000,-2247.1401,0.00038625,2]
[421698395,1778046734000,-2247.1401,0.00038351,2]
[421698370,1778046734000,-300.0,0.00038241,2]
[421698400,1778046734000,-150.0,0.00038356,2]
[421698373,1778046734000,-300.0,0.00038241,2]
[421698378,1778046734000,-186.7459471,0.00038242,120]
[421698379,1778046734000,-210.1366791,0.00038242,120]
[421698377,1778046734000,-309.32134718,0.00038241,2]
[421698381,1778046734000,-331.5694761,0.00038242,120]
[421698376,1778046734000,-483.27319916,0.00038241,2]
[421698380,1778046734000,-283.6996602,0.00038242,120]
[421698383,1778046734000,-574.3791459,0.00038242,120]
[421698393,1778046734000,-310.0,0.00038329,50]
[421698384,1778046734000,-271.5036769,0.00038242,120]
[421698394,1778046734000,-4000.0,0.00038329,60]
[421698375,1778046734000,-300.0,0.00038241,2]
[421698382,1778046734000,-500.0,0.00038242,120]
[421698397,1778046734000,-165.09,0.00038356,30]
[421698385,1778046734000,-1434.7391999,0.00038253,2]
[421698406,1778046734000,-250.0,0.00038356,2]
[421698396,1778046734000,-150.5,0.00038351,2]
[421698390,1778046734000,-200.0,0.00038316,2]
[421698391,1778046734000,-250.0,0.00038328,7]
[421698398,1778046734000,-150.0,0.00038356,120]
[421698386,1778046734000,-12424.6566686,0.00038254,2]
[421698389,1778046734000,-200.0,0.00038316,2]
[421698388,1778046734000,-200.0,0.00038316,2]
[421698387,1778046734000,-152.0,0.000383,7]
[421698392,1778046734000,-250.0,0.00038328,7]
[421698479,1778046735000,-151.0,0.00040121,2]
[421698478,1778046735000,-543.26,0.0004003,120]
[421698470,1778046735000,-155.53159687,0.0004,90]
[421698469,1778046735000,-1178.78069179,0.0004,120]
[421698467,1778046735000,-1583.60000411,0.0004,2]
[421698462,1778046735000,-889.395116,0.0004,120]
[421698466,1778046735000,-395.81661262,0.0004,2]
[421698460,1778046735000,-1777.0864347,0.0004,120]
[421698457,1778046735000,-3646.09057343,0.00039999,120]
[421698463,1778046735000,-1197.23113225,0.0004,120]
[421698472,1778046735000,-10374.8165888,0.0004,120]
[421698468,1778046735000,-588.95083469,0.0004,120]
[421698471,1778046735000,-319.54666784,0.0004,2]
[421698491,1778046735000,-624.0,0.00040313,2]
[421698476,1778046735000,-310.0,0.00040004,68]
[421698473,1778046735000,-492.92741505,0.0004,120]
[421698474,1778046735000,-2000.0,0.0004,120]
[421698477,1778046735000,-500.0,0.00040027,2]
[421698481,1778046735000,-209.40437684,0.00040123,2]
[421698480,1778046735000,-599.60298507,0.00040122,2]
[421698492,1778046735000,-925.0,0.00040313,2]
[421698487,1778046735000,-27651.22,0.0004029,60]
[421698483,1778046735000,-543.26,0.0004023,120]
[421698489,1778046735000,-350.95,0.0004029,60]
[421698482,1778046735000,-543.26,0.0004013,120]
[421698465,1778046735000,-413.25656224,0.0004,120]
[421698475,1778046735000,-500.0,0.0004,90]
[421698464,1778046735000,-11996.04536972,0.0004,4]
[421698430,1778046735000,-200.0,0.00039086,2]
[421698456,1778046735000,-2247.1401,0.00039995,2]
[421698484,1778046735000,-2247.1407,0.00040269,2]
[421698434,1778046735000,-300.36,0.000393,30]
[421698435,1778046735000,-2000.0,0.000393,7]
[421698432,1778046735000,-152.0,0.00039286,11]
[421698431,1778046735000,-2247.1401,0.00039173,2]
[421698439,1778046735000,-2028.02823873,0.000394,120]
[421698433,1778046735000,-1468.02,0.000393,7]
[421698436,1778046735000,-2023.0,0.000393,7]
[421698438,1778046735000,-2859.15288275,0.000394,120]
[421698437,1778046735000,-209.0245,0.0003931,2]
[421698440,1778046735000,-2247.1401,0.00039447,2]
[421698441,1778046735000,-200.0,0.00039477,2]
[421698444,1778046735000,-150.0,0.00039579,2]
[421698443,1778046735000,-201.93286099,0.00039575,2]
[421698452,1778046735000,-200.0,0.00039872,2]
[421698451,1778046735000,-250.17,0.00039848,30]
[421698442,1778046735000,-1651.81367706,0.00039575,2]
[421698448,1778046735000,-366.99,0.000398,90]
[421698445,1778046735000,-2247.1401,0.00039721,2]
[421698447,1778046735000,-250.0,0.00039753,65]
[421698446,1778046735000,-742.26410549,0.00039747,120]
[421698450,1778046735000,-543.26,0.0003983,120]
[421698453,1778046735000,-507.0,0.00039897,16]
[421698455,1778046735000,-543.26,0.0003993,120]
[421698454,1778046735000,-200141.71610244,0.000399,120]
[421698461,1778046735000,-5321.04932443,0.0004,120]
[421698458,1778046735000,-153.0,0.0004,120]
[421698459,1778046735000,-153.0,0.0004,120]
[421698486,1778046735000,-3143.16,0.0004029,60]
[421698449,1778046735000,-641.46214284,0.0003983,120]
[421698485,1778046735000,-434.99,0.0004029,60]
[421698523,1778046735000,-51999.99999983,0.00041,2]
[421698518,1778046735000,-543.26,0.0004083,120]
[421698522,1778046735000,-20000.0,0.00041,2]
[421698521,1778046735000,-3000.0,0.00041,120]
[421698528,1778046735000,-543.26,0.0004103,120]
[421698538,1778046735000,-310.0,0.00041131,90]
[421698529,1778046735000,-1142.1,0.00041041,120]
[421698546,1778046735000,-50000.0,0.00041233,60]
[421698539,1778046735000,-2005.9555727,0.00041199,30]
[421698527,1778046735000,-700.0,0.00041003,21]
[421698530,1778046735000,-2761.0,0.00041085,5]
[421698534,1778046735000,-623.0,0.00041096,120]
[421698532,1778046735000,-1560.0,0.00041096,120]
[421698531,1778046735000,-3181.0,0.00041085,5]
[421698536,1778046735000,-1082.05003167,0.00041096,7]
[421698535,1778046735000,-200.0,0.00041096,20]
[421698537,1778046735000,-543.26,0.0004113,120]
[421698533,1778046735000,-336.85437484,0.00041096,2]
[421698540,1778046735000,-2500.0,0.000412,120]
[421698543,1778046735000,-225.18697532,0.00041219,2]
[421698549,1778046735000,-8426.47188997,0.00041234,31]
[421698544,1778046735000,-350.0,0.00041228,5]
[421698541,1778046735000,-153.0,0.000412,120]
[421698545,1778046735000,-543.26,0.0004123,120]
[421698547,1778046735000,-717.45,0.00041233,60]
[421698548,1778046735000,-903.61,0.00041233,60]
[421698490,1778046735000,-1352.0,0.00040313,2]
[421698525,1778046735000,-520.12089416,0.00041003,21]
[421698520,1778046735000,-73376.0,0.0004095,60]
[421698542,1778046735000,-25092.44620806,0.00041209,70]
[421698526,1778046735000,-500.0,0.00041003,21]
[421698524,1778046735000,-1127.64890688,0.00041,90]
[421698488,1778046735000,-2552.56,0.0004029,60]
[421698493,1778046735000,-1268.0,0.00040313,2]
[421698494,1778046735000,-417.0,0.00040313,2]
[421698501,1778046735000,-300.36,0.000405,30]
[421698497,1778046735000,-361.72528501,0.00040464,2]
[421698500,1778046735000,-2859.15288275,0.000405,120]
[421698504,1778046735000,-1099.5765,0.00040515,4]
[421698496,1778046735000,-543.26,0.0004043,120]
[421698502,1778046735000,-2028.02823873,0.000405,120]
[421698503,1778046735000,-1247.3476,0.00040515,4]
[421698499,1778046735000,-156.79057218,0.000405,120]
[421698498,1778046735000,-5000.0,0.000405,100]
[421698495,1778046735000,-543.26,0.0004033,120]
[421698516,1778046735000,-153.0,0.000408,120]
[421698506,1778046735000,-250.0,0.00040548,2]
[421698517,1778046735000,-507.0,0.00040808,17]
[421698515,1778046735000,-156.48951136,0.00040795,120]
[421698519,1778046735000,-543.26,0.0004093,120]
[421698513,1778046735000,-217.15233878,0.00040671,2]
[421698512,1778046735000,-250.0,0.00040661,80]
[421698514,1778046735000,-543.26,0.0004073,120]
[421698511,1778046735000,-543.26,0.0004063,120]
[421698510,1778046735000,-152.0,0.00040556,12]
[421698508,1778046735000,-250.0,0.00040548,2]
[421698507,1778046735000,-250.0,0.00040548,2]
[421698505,1778046735000,-543.26,0.0004053,120]
[421698509,1778046735000,-260.05273032,0.00040548,2]
[421698571,1778046736000,-543.26,0.0004153,120]
[421698568,1778046736000,-8902.44406883,0.000415,120]
[421698570,1778046736000,-300.36,0.000415,30]
[421698578,1778046736000,-1560.0,0.00041644,120]
[421698577,1778046736000,-202.45805464,0.0004164,30]
[421698588,1778046736000,-250.0,0.00041776,95]
[421698585,1778046736000,-543.32,0.0004173,120]
[421698582,1778046736000,-215.64,0.00041712,120]
[421698581,1778046736000,-641.46214286,0.00041699,2]
[421698583,1778046736000,-1046.98494811,0.00041712,30]
[421698590,1778046736000,-2500.0,0.000418,120]
[421698584,1778046736000,-507.0,0.0004172,18]
[421698580,1778046736000,-1142.1,0.00041694,120]
[421698587,1778046736000,-233.51889341,0.00041767,2]
[421698586,1778046736000,-1004.05,0.0004175,120]
[421698589,1778046736000,-641.46214286,0.00041799,2]
[421698600,1778046736000,-245.49086412,0.0004183,30]
[421698592,1778046736000,-2028.02823873,0.000418,120]
[421698573,1778046736000,-2772.3156322,0.00041598,2]
[421698591,1778046736000,-2859.15288275,0.000418,120]
[421698579,1778046736000,-332.99,0.00041647,7]
[421698572,1778046736000,-150.0,0.00041558,120]
[421698557,1778046736000,-641.46214286,0.00041399,2]
[421698574,1778046736000,-641.46214286,0.00041599,2]
[421698593,1778046736000,-426.97,0.00041811,120]
[421698550,1778046736000,-166.305,0.00041235,2]
[421698551,1778046736000,-163.0,0.00041248,11]
[421698552,1778046736000,-641.46214286,0.00041299,2]
[421698554,1778046736000,-543.26,0.0004133,120]
[421698553,1778046736000,-250.0,0.00041311,91]
[421698556,1778046736000,-5825.59664551,0.00041357,2]
[421698555,1778046736000,-200.0,0.00041345,120]
[421698558,1778046736000,-2000.0,0.00041403,120]
[421698575,1778046736000,-163.0,0.00041612,11]
[421698559,1778046736000,-543.26,0.0004143,120]
[421698564,1778046736000,-641.46214286,0.00041499,2]
[421698563,1778046736000,-151.0,0.0004149,2]
[421698561,1778046736000,-4608.2804443,0.00041486,2]
[421698562,1778046736000,-350.1149524,0.00041486,2]
[421698576,1778046736000,-543.26,0.0004163,120]
[421698565,1778046736000,-2500.0,0.000415,120]
[421698566,1778046736000,-60522.12469072,0.000415,120]
[421698569,1778046736000,-836.76182996,0.000415,30]
[421698567,1778046736000,-153.0,0.000415,120]
[421698560,1778046736000,-846.7199483,0.00041486,2]
[421698598,1778046736000,-1938.10029955,0.0004183,30]
[421698597,1778046736000,-150.0,0.0004183,30]
[421698633,1778046736000,-500.0,0.00042,45]
[421698619,1778046736000,-971.15852387,0.00042,120]
[421698624,1778046736000,-5000.0,0.00042,120]
[421698630,1778046736000,-50000.0,0.00042,120]
[421698626,1778046736000,-500.0,0.00042,45]
[421698625,1778046736000,-500.0,0.00042,45]
[421698628,1778046736000,-500.0,0.00042,45]
[421698629,1778046736000,-500.0,0.00042,45]
[421698631,1778046736000,-500.0,0.00042,45]
[421698634,1778046736000,-500.0,0.00042,45]
[421698620,1778046736000,-50000.0,0.00042,120]
[421698632,1778046736000,-500.0,0.00042,45]
[421698636,1778046736000,-500.0,0.00042,45]
[421698637,1778046736000,-44532.23226421,0.00042,120]
[421698642,1778046736000,-3000.0,0.00042,120]
[421698638,1778046736000,-9443.27026721,0.00042,90]
[421698640,1778046736000,-500.0,0.00042,2]
[421698639,1778046736000,-50000.0,0.00042,120]
[421698641,1778046736000,-11325.13190072,0.00042,120]
[421698643,1778046736000,-16137.95681956,0.00042,10]
[421698595,1778046736000,-700.0,0.00041825,120]
[421698635,1778046736000,-500.0,0.00042,45]
[421698622,1778046736000,-500.0,0.00042,45]
[421698627,1778046736000,-183.0,0.00042,2]
[421698623,1778046736000,-500.0,0.00042,45]
[421698594,1778046736000,-250.24,0.0004182,30]
[421698596,1778046736000,-152.0,0.00041826,13]
[421698599,1778046736000,-150.0,0.0004183,30]
[421698602,1778046736000,-1934.38338737,0.00041836,30]
[421698612,1778046736000,-150.54233274,0.000419,120]
[421698605,1778046736000,-310.0,0.0004189,93]
[421698621,1778046736000,-500.0,0.00042,45]
[421698604,1778046736000,-150.0,0.00041851,120]
[421698601,1778046736000,-246.92,0.00041835,120]
[421698606,1778046736000,-151.0,0.00041897,14]
[421698607,1778046736000,-173892.0933163,0.000419,30]
[421698603,1778046736000,-150.0,0.00041851,120]
[421698608,1778046736000,-1011.12,0.000419,120]
[421698609,1778046736000,-200.0,0.000419,15]
[421698611,1778046736000,-150.54233274,0.000419,120]
[421698614,1778046736000,-300.0,0.000419,15]
[421698613,1778046736000,-150.54233274,0.000419,120]
[421698617,1778046736000,-919.79186239,0.00041998,120]
[421698616,1778046736000,-488.00397762,0.0004199,60]
[421698615,1778046736000,-1865.36488657,0.00041916,30]
[421698610,1778046736000,-150.54233277,0.000419,120]
[421698618,1778046736000,-3819.48820206,0.00042,120]
[421698673,1778046737000,-151.0,0.00042,60]
[421698694,1778046737000,-243.725788,0.00042,30]
[421698692,1778046737000,-243.725788,0.00042,30]
[421698684,1778046737000,-607.81341,0.00042,120]
[421698678,1778046737000,-259.133483,0.00042,120]
[421698681,1778046737000,-1920.959522,0.00042,28]
[421698677,1778046737000,-259.133483,0.00042,120]
[421698679,1778046737000,-1920.959522,0.00042,28]
[421698676,1778046737000,-259.133483,0.00042,120]
[421698675,1778046737000,-259.133483,0.00042,120]
[421698685,1778046737000,-1529.201548,0.00042,120]
[421698680,1778046737000,-1920.959522,0.00042,28]